Department Of Health,Entity,Date of Payment,Expense Type,Expense Area,Supplier ,Amount,Month
Department Of Health,United Lincolnshire Hospitals NHS Trust,28/11/2019,PHARMACY,DIAGNOSTICS,ALLOGA UK LTD,"48,816.00",Nov-19
Department Of Health,United Lincolnshire Hospitals NHS Trust,07/11/2019,PHOTOCOPIER MACHINES,DIRECTOR OF FINANCE & DIGITAL,ALTODIGITAL NETWORKS LTD,"88,902.00",Nov-19
Department Of Health,United Lincolnshire Hospitals NHS Trust,28/11/2019,WATER AND SEWERAGE,DIRECTOR OF ESTATES & FACIL,ANGLIAN WATER BUSINESS NATIONAL LTD,"30,746.80",Nov-19
Department Of Health,United Lincolnshire Hospitals NHS Trust,28/11/2019,WATER AND SEWERAGE,DIRECTOR OF ESTATES & FACIL,ANGLIAN WATER BUSINESS NATIONAL LTD,"72,730.12",Nov-19
Department Of Health,United Lincolnshire Hospitals NHS Trust,28/11/2019,HIRE OF CLINICAL EQUIPMENT,DIRECTOR OF NURSING,ARJO UK LIMITED,"121,158.96",Nov-19
Department Of Health,United Lincolnshire Hospitals NHS Trust,28/11/2019,PHARMACY,DIAGNOSTICS,BAYER PLC,"26,220.00",Nov-19
Department Of Health,United Lincolnshire Hospitals NHS Trust,28/11/2019,EXTERNAL LAUNDRY CONTRACT,DIRECTOR OF ESTATES & FACIL,BERENDSEN HEALTHCARE LTD,"35,548.90",Nov-19
Department Of Health,United Lincolnshire Hospitals NHS Trust,28/11/2019,EXTERNAL LAUNDRY CONTRACT,DIRECTOR OF ESTATES & FACIL,BERENDSEN HEALTHCARE LTD,"59,059.00",Nov-19
Department Of Health,United Lincolnshire Hospitals NHS Trust,28/11/2019,EXTERNAL LAUNDRY CONTRACT,DIRECTOR OF ESTATES & FACIL,BERENDSEN HEALTHCARE LTD,"50,708.30",Nov-19
Department Of Health,United Lincolnshire Hospitals NHS Trust,28/11/2019,EXTERNAL LAUNDRY CONTRACT,DIRECTOR OF ESTATES & FACIL,BERENDSEN HEALTHCARE LTD,"54,060.94",Nov-19
Department Of Health,United Lincolnshire Hospitals NHS Trust,28/11/2019,COMPUTER HARDWARE,CAPITAL PROGRAMME,BIGHAND LTD,"37,331.71",Nov-19
Department Of Health,United Lincolnshire Hospitals NHS Trust,28/11/2019,PHARMACY,DIAGNOSTICS,BIOTEST (UK) LTD,"36,860.00",Nov-19
Department Of Health,United Lincolnshire Hospitals NHS Trust,07/11/2019,EQUIPMENT >5K,CAPITAL PROGRAMME,DAYBREAK MEDICAL LTD,"41,851.20",Nov-19
Department Of Health,United Lincolnshire Hospitals NHS Trust,17/10/2019,ELECTRICITY,DIRECTOR OF ESTATES & FACIL,EDF ENERGY 1 LIMITED,"67,034.99",Nov-19
Department Of Health,United Lincolnshire Hospitals NHS Trust,25/10/2019,ELECTRICITY,DIRECTOR OF ESTATES & FACIL,EDF ENERGY 1 LIMITED,"76,064.08",Nov-19
Department Of Health,United Lincolnshire Hospitals NHS Trust,25/10/2019,ELECTRICITY,DIRECTOR OF ESTATES & FACIL,EDF ENERGY 1 LIMITED,"69,864.50",Nov-19
Department Of Health,United Lincolnshire Hospitals NHS Trust,18/11/2019,ELECTRICITY,DIRECTOR OF ESTATES & FACIL,EDF ENERGY 1 LIMITED,"75,311.57",Nov-19
Department Of Health,United Lincolnshire Hospitals NHS Trust,07/11/2019,CONSULTANTS FEES,CAPITAL PROGRAMME,FOCUS CONSULTANTS 2010 LLP,"32,750.00",Nov-19
Department Of Health,United Lincolnshire Hospitals NHS Trust,28/11/2019,BUILD MAINT DAY TO DAY,DIRECTOR OF ESTATES & FACIL,GELDER LTD,"24,320.00",Nov-19
Department Of Health,United Lincolnshire Hospitals NHS Trust,28/11/2019,ENGINEERING SERVICES,CAPITAL PROGRAMME,GELDER LTD,"23,583.34",Nov-19
Department Of Health,United Lincolnshire Hospitals NHS Trust,21/11/2019,NI EES,CREDITORS,HM REVENUE & CUSTOMS,"58,927.75",Nov-19
Department Of Health,United Lincolnshire Hospitals NHS Trust,21/11/2019,NI ERS,CREDITORS,HM REVENUE & CUSTOMS,"191,048.88",Nov-19
Department Of Health,United Lincolnshire Hospitals NHS Trust,21/11/2019,PAYE,PAN TRUST,HM REVENUE & CUSTOMS,"3,551,701.24",Nov-19
Department Of Health,United Lincolnshire Hospitals NHS Trust,21/11/2019,PAYE,PAN TRUST,HM REVENUE & CUSTOMS,"2,997,494.09",Nov-19
Department Of Health,United Lincolnshire Hospitals NHS Trust,21/11/2019,PAYE,PAN TRUST,HM REVENUE & CUSTOMS,"106,309.00",Nov-19
Department Of Health,United Lincolnshire Hospitals NHS Trust,21/11/2019,PAYE,PAN TRUST,HM REVENUE & CUSTOMS,"452,942.89",Nov-19
Department Of Health,United Lincolnshire Hospitals NHS Trust,21/11/2019,STUDENT LOAN RE-PAYMENTS,CREDITORS,HM REVENUE & CUSTOMS,"14,296.00",Nov-19
Department Of Health,United Lincolnshire Hospitals NHS Trust,28/11/2019,FUEL - STEAM,DIRECTOR OF ESTATES & FACIL,INDUSTRIAL ENERGY SERVICES LTD,"28,033.59",Nov-19
Department Of Health,United Lincolnshire Hospitals NHS Trust,14/11/2019,EXTERNAL CONTRACTS,CHIEF PHARMACIST TRUSTWIDE,L ROWLAND & CO (RETAIL) LTD,"64,995.00",Nov-19
Department Of Health,United Lincolnshire Hospitals NHS Trust,14/11/2019,LLOYDS PHARMACY,CHIEF PHARMACIST TRUSTWIDE,L ROWLAND & CO (RETAIL) LTD,"912,467.56",Nov-19
Department Of Health,United Lincolnshire Hospitals NHS Trust,22/11/2019,STRUCTURE,CAPITAL PROGRAMME,LINDUM GROUP LTD,"49,697.77",Nov-19
Department Of Health,United Lincolnshire Hospitals NHS Trust,07/11/2019,QUALIFIED AGENCY INVOICES,DIRECTOR OF NURSING,MEDICAL 24 LTD,"27,908.69",Nov-19
Department Of Health,United Lincolnshire Hospitals NHS Trust,28/11/2019,QUALIFIED AGENCY INVOICES,DIRECTOR OF NURSING,MEDICAL 24 LTD,"21,709.64",Nov-19
Department Of Health,United Lincolnshire Hospitals NHS Trust,28/11/2019,QUALIFIED AGENCY INVOICES,DIRECTOR OF NURSING,MEDICAL 24 LTD,"21,991.15",Nov-19
Department Of Health,United Lincolnshire Hospitals NHS Trust,28/11/2019,MEDICAL LOCUMS,DIAGNOSTICS TRUSTWIDE,MIDLANDS PRIVATE NEUROPHYSIOLOGY LTD,"27,525.00",Nov-19
Department Of Health,United Lincolnshire Hospitals NHS Trust,14/11/2019,POSTAGE,DIRECTOR OF ESTATES & FACIL,NEOPOST (POSTAGE TOP UP ONLY) POSTROOM,"50,000.00",Nov-19
Department Of Health,United Lincolnshire Hospitals NHS Trust,21/11/2019,POSTAGE,DIRECTOR OF ESTATES & FACIL,NEOPOST (POSTAGE TOP UP ONLY) POSTROOM,"50,000.00",Nov-19
Department Of Health,United Lincolnshire Hospitals NHS Trust,21/11/2019,BLOOD PRODUCTS,BLOOD & PATHLINKS TRUSTWIDE,NHS BLOOD AND TRANSPLANT,"66,748.40",Nov-19
Department Of Health,United Lincolnshire Hospitals NHS Trust,07/11/2019,STRUCTURE,CAPITAL PROGRAMME,R G CARTER BUILDING LTD,"324,257.42",Nov-19
Department Of Health,United Lincolnshire Hospitals NHS Trust,07/11/2019,STRUCTURE,CAPITAL PROGRAMME,R G CARTER BUILDING LTD,"450,998.01",Nov-19
Department Of Health,United Lincolnshire Hospitals NHS Trust,14/11/2019,STRUCTURE,CAPITAL PROGRAMME,R G CARTER BUILDING LTD,"244,432.52",Nov-19
Department Of Health,United Lincolnshire Hospitals NHS Trust,28/11/2019,MEDICAL RECORD STORAGE,DIRECTOR OF FINANCE & DIGITAL,RESTORE PLC - (WAS MAGNUM),"37,430.50",Nov-19
Department Of Health,United Lincolnshire Hospitals NHS Trust,28/11/2019,RESUS STOCK CONSUMABLES,PAN TRUST,SCCL - NHS SUPPLY CHAIN (PRODUCT SALES),"291,086.76",Nov-19
Department Of Health,United Lincolnshire Hospitals NHS Trust,28/11/2019,COMPUTER PURCHASE ACCESSORIES,DIRECTOR OF NURSING,SOFTCAT LTD,"399,667.20",Nov-19
Department Of Health,United Lincolnshire Hospitals NHS Trust,21/11/2019,GP SPECIALIST TRAINEE,MEDICAL DIRECTOR,ST HELENS & KNOWSLEY TEACHING,"130,000.00",Nov-19
Department Of Health,United Lincolnshire Hospitals NHS Trust,21/11/2019,GP SPECIALIST TRAINEE,MEDICAL DIRECTOR,ST HELENS & KNOWSLEY TEACHING,"83,579.86",Nov-19
Department Of Health,United Lincolnshire Hospitals NHS Trust,28/11/2019,SERVICES FROM NON-NHS BODIES,TACC & PAIN,SYNERGY HEALTH (UK) LTD,"274,754.33",Nov-19
Department Of Health,United Lincolnshire Hospitals NHS Trust,21/11/2019,COMP SOFTWARE LICENCE FEES,WOMEN & CHILDREN DIVIS MANAGE,SYSTEM C HEALTHCARE LTD,"10,323.00",Nov-19
Department Of Health,United Lincolnshire Hospitals NHS Trust,21/11/2019,FINANCIAL LEDGER,DIRECTOR OF FINANCE & DIGITAL,SYSTEM C HEALTHCARE LTD,"100,425.93",Nov-19
Department Of Health,United Lincolnshire Hospitals NHS Trust,28/11/2019,CPAP MACHINES,SURGERY AND HEAD & NECK,THE SNORING DISORDERS CENTRE LTD,"49,907.84",Nov-19
Department Of Health,United Lincolnshire Hospitals NHS Trust,28/11/2019,CPAP MACHINES,SURGERY AND HEAD & NECK,THE SNORING DISORDERS CENTRE LTD,"40,370.88",Nov-19
